bitfinex/quotes_BTCUSD_20240908
["timestamp","ask_amount","ask_price","bid_price","bid_amount"]
[1725804420753,0.000814,54433.0,54432.0,1.2207098]
[1725804421741,0.000814,54433.0,54432.0,1.2107098]
[1725804424531,0.000814,54433.0,54432.0,1.086703]
[1725804425726,0.000814,54433.0,54432.0,0.719273]
[1725804426677,0.000814,54433.0,54432.0,0.001628]
[1725804426678,0.55195,54433.0,54432.0,0.001628]
[1725804426924,0.183712,54433.0,54432.0,0.001628]
[1725804427397,0.183707,54435.0,54432.0,0.001628]
[1725804427648,0.183706,54435.0,54432.0,0.0569076]
[1725804427877,0.367412,54435.0,54432.0,0.0569076]
[1725804428107,0.183709,54434.0,54432.0,0.0569076]
[1725804428595,0.183709,54434.0,54432.0,0.001628]
[1725804429697,0.183705,54435.0,54432.0,0.001628]
[1725804430784,0.183709,54434.0,54432.0,0.001628]
[1725804434356,0.183705,54435.0,54432.0,0.001628]
[1725804435978,0.183712,54433.0,54432.0,0.001628]
[1725804438060,0.05519836,54435.0,54432.0,0.001628]
[1725804438306,0.183712,54433.0,54432.0,0.001628]
[1725804439060,1.52498072,54433.0,54432.0,0.001628]
[1725804439288,1.68140653,54433.0,54432.0,0.001628]
[1725804439532,1.54338115,54433.0,54432.0,0.001628]
[1725804439765,1.68136278,54433.0,54432.0,0.001628]
[1725804440699,1.54338115,54433.0,54432.0,0.001628]
[1725804441641,1.65371274,54433.0,54432.0,0.001628]
[1725804442316,1.68097613,54433.0,54432.0,0.001628]
[1725804443535,1.58296597,54433.0,54432.0,0.001628]
[1725804443888,0.42249397,54433.0,54432.0,0.001628]
[1725804443944,0.36765462,54433.0,54432.0,0.143128]
[1725804444192,0.12879715,54433.0,54432.0,0.143128]
[1725804444391,0.31250915,54433.0,54432.0,0.143128]
[1725804444596,0.67993315,54433.0,54432.0,0.143128]
[1725804445874,0.31250915,54433.0,54432.0,0.143128]
[1725804447058,0.283712,54433.0,54432.0,0.143128]
[1725804449238,0.1,54433.0,54432.0,0.49283604]
[1725804449458,0.183703,54436.0,54432.0,0.30912104]
[1725804449678,0.283705,54435.0,54432.0,0.49283404]
[1725804450113,0.000814,54433.0,54432.0,0.30912104]
[1725804450782,0.000814,54433.0,54432.0,0.39514994]
[1725804451859,0.000814,54433.0,54432.0,0.76257994]
[1725804452074,0.000814,54433.0,54432.0,0.57886494]
[1725804452739,0.08218542,54435.0,54432.0,0.57886494]
[1725804453384,0.08218542,54435.0,54433.0,0.183711]
[1725804453592,0.08218542,54435.0,54434.0,0.183708]
[1725804453822,0.183696,54438.0,54433.0,0.09025713]
[1725804454068,0.183696,54438.0,54436.0,0.16599304]
[1725804454274,0.000814,54440.0,54433.0,0.093931]
[1725804454275,0.183694,54439.0,54437.0,0.08836583]
[1725804454486,0.183695,54438.0,54437.0,0.08836583]
[1725804455147,0.283695,54438.0,54437.0,0.08836583]
[1725804455389,0.000814,54440.0,54438.0,0.083]
[1725804455616,0.000814,54440.0,54438.0,0.266693]
[1725804456269,0.000814,54440.0,54439.0,0.183691]
[1725804456480,0.000814,54440.0,54439.0,0.2697199]
[1725804456687,0.000814,54440.0,54439.0,0.183691]
[1725804458855,0.000814,54440.0,54439.0,0.982757]
[1725804460301,0.000814,54440.0,54439.0,1.14840103]
[1725804463070,0.000814,54440.0,54439.0,1.23140103]
[1725804463287,0.000814,54440.0,54439.0,1.35554113]
[1725804463508,0.000814,54440.0,54439.0,1.73292413]
[1725804463717,0.000814,54440.0,54439.0,1.75592413]
[1725804465043,0.000814,54440.0,54439.0,1.37854113]
[1725804465256,0.000814,54440.0,54439.0,0.86401803]
[1725804466175,0.000814,54440.0,54439.0,0.1473]
[1725804466386,0.000814,54440.0,54437.0,0.183696]
[1725804467233,0.000814,54440.0,54435.0,0.31294403]
[1725804467478,0.000814,54440.0,54437.0,0.183695]
[1725804468350,0.000814,54440.0,54438.0,0.183694]
[1725804468601,0.000814,54440.0,54436.0,0.367403]
[1725804468602,0.000814,54440.0,54437.0,0.183697]
[1725804469051,0.184504,54440.0,54435.0,0.49664703]
[1725804469266,0.184504,54440.0,54436.0,0.183701]
[1725804469733,0.183692,54439.0,54435.0,0.331005]
[1725804469993,0.184503,54440.0,54436.0,0.1837]
[1725804471083,0.000814,54440.0,54435.0,0.083]
[1725804471343,0.000814,54440.0,54432.0,0.084628]
[1725804471588,0.183712,54433.0,54432.0,0.001628]
[1725804472215,0.183709,54434.0,54432.0,0.001628]
[1725804473074,0.183712,54433.0,54432.0,0.001628]
[1725804473300,0.551136,54433.0,54432.0,0.001628]
[1725804473541,0.183712,54433.0,54432.0,0.001628]
[1725804475103,0.91856,54433.0,54432.0,0.001628]
[1725804476846,0.551136,54433.0,54432.0,0.001628]
[1725804477083,0.367407,54436.0,54432.0,0.001628]
[1725804477313,0.551125,54434.0,54433.0,0.078]
[1725804478912,0.551136,54433.0,54432.0,0.001628]
[1725804480582,1.285984,54433.0,54432.0,0.001628]
[1725804480823,1.385984,54433.0,54432.0,0.001628]
[1725804482232,1.90774616,54433.0,54432.0,0.001628]
[1725804482478,2.05093447,54433.0,54432.0,0.001628]
[1725804483911,1.882008,54433.0,54432.0,0.001628]
[1725804485115,2.27575611,54433.0,54432.0,0.001628]
[1725804485348,2.29034442,54433.0,54432.0,0.001628]
[1725804485799,1.90833211,54433.0,54432.0,0.001628]
[1725804490540,2.04592569,54433.0,54432.0,0.001628]
[1725804490789,2.23090876,54433.0,54432.0,0.001628]
[1725804492292,2.09331518,54433.0,54432.0,0.001628]
[1725804492521,1.55302878,54433.0,54432.0,0.001628]
[1725804492745,1.47050811,54433.0,54432.0,0.001628]
[1725804492948,1.52552023,54433.0,54432.0,0.001628]
[1725804494028,1.54017774,54433.0,54432.0,0.001628]
[1725804494467,2.00551029,54433.0,54432.0,0.001628]
[1725804494682,2.10797269,54433.0,54432.0,0.001628]
[1725804494912,2.21800025,54433.0,54432.0,0.001628]
[1725804496529,2.10797269,54433.0,54432.0,0.001628]
[1725804497198,2.17576736,54433.0,54432.0,0.001628]
[1725804498086,2.09331518,54433.0,54432.0,0.001628]
[1725804498542,2.10798959,54433.0,54432.0,0.001628]
[1725804499168,1.7955167,54433.0,54432.0,0.001628]
[1725804499817,2.1629407,54433.0,54432.0,0.001628]
[1725804500238,2.09331518,54433.0,54432.0,0.001628]
[1725804501573,2.09331518,54433.0,54432.0,1e-06]
[1725804501574,2.48073918,54433.0,54432.0,1e-06]
[1725804501826,2.48073918,54433.0,54417.0,0.084628]
[1725804501827,1.286337,54418.0,54417.0,0.001628]
[1725804502037,1.386337,54418.0,54417.0,0.001628]
[1725804502453,1.41514499,54418.0,54417.0,0.001628]
[1725804502960,1.286999,54390.0,54383.0,0.001634]
[1725804503203,1.41034935,54390.0,54384.0,0.63730836]
[1725804503416,1.41034935,54390.0,54383.0,0.001634]
[1725804503417,1.51034935,54390.0,54383.0,0.001634]
[1725804503673,1.87806335,54390.0,54383.0,0.001634]
[1725804503908,1.934121,54390.0,54383.0,0.001634]
[1725804504130,1.90688449,54390.0,54383.0,0.001634]
[1725804504558,1.91688449,54390.0,54383.0,0.001634]
[1725804504765,1.53917049,54390.0,54383.0,0.001634]
[1725804504984,1.41582014,54390.0,54383.0,0.001634]
[1725804510351,1.41582014,54390.0,54388.0,0.083]
[1725804511397,1.41582014,54390.0,54388.0,0.1487]
[1725804513669,1.04810614,54390.0,54388.0,0.1487]
[1725804513917,0.68039214,54390.0,54388.0,0.0657]
[1725804514109,0.68039214,54390.0,54389.0,0.08243]
[1725804514326,0.31267814,54390.0,54389.0,0.08243]
[1725804514534,0.68039214,54390.0,54389.0,0.08243]
[1725804514735,0.31267814,54390.0,54389.0,0.08243]
[1725804515986,0.68039214,54390.0,54389.0,0.08243]
[1725804516827,0.651571,54390.0,54389.0,0.08243]
[1725804517542,1.47995213,54390.0,54389.0,0.08243]
[1725804518384,1.386999,54390.0,54389.0,0.08243]
[1725804518824,1.386999,54390.0,54389.0,0.00163]
[1725804520766,1.78353658,54390.0,54389.0,0.00163]
[1725804526865,1.754713,54390.0,54389.0,0.00163]
[1725804528380,1.754713,54390.0,54383.0,0.001634]
[1725804528381,2.022537,54387.0,54383.0,0.001634]
[1725804528612,0.193897,54378.0,54377.0,1e-06]
[1725804528868,1.815677,54378.0,54377.0,1e-06]
[1725804529091,2.31803184,54378.0,54377.0,1e-06]
[1725804529323,2.89001587,54378.0,54377.0,1e-06]
[1725804530031,2.91885122,54378.0,54377.0,1e-06]
[1725804530282,2.94082738,54378.0,54377.0,1e-06]
[1725804530763,2.96280354,54378.0,54377.0,1e-06]
[1725804532289,2.91885122,54378.0,54377.0,1e-06]
[1725804532396,1.85767815,54378.0,54377.0,1e-06]
[1725804532642,1.86767815,54378.0,54377.0,1e-06]
[1725804532900,1.86967815,54378.0,54377.0,1e-06]
[1725804533155,1.86767815,54378.0,54377.0,1e-06]
[1725804533399,2.05466122,54378.0,54377.0,1e-06]
[1725804533890,2.06935003,54378.0,54377.0,1e-06]
[1725804536947,2.04051468,54378.0,54377.0,1e-06]
[1725804538270,2.40830968,54378.0,54377.0,1e-06]
[1725804538530,2.04051468,54378.0,54377.0,1e-06]
[1725804538745,2.40830968,54378.0,54377.0,1e-06]
[1725804538975,2.04051468,54378.0,54377.0,1e-06]
[1725804539838,2.06686377,54378.0,54377.0,1e-06]
[1725804540096,2.46349274,54378.0,54377.0,1e-06]
[1725804540577,2.09569774,54378.0,54377.0,1e-06]
[1725804540820,2.46349274,54378.0,54377.0,1e-06]
[1725804541061,2.46349274,54378.0,54377.0,0.146301]
[1725804541062,0.05518306,54378.0,54377.0,0.146301]
[1725804541279,0.60687506,54378.0,54377.0,0.146301]
[1725804541737,0.97467006,54378.0,54377.0,0.146301]
[1725804541950,1.34246506,54378.0,54377.0,0.146301]
[1725804542867,1.44246506,54378.0,54377.0,0.146301]
[1725804543077,1.5492684,54378.0,54377.0,0.146301]
[1725804544767,1.5492684,54378.0,54377.0,0.080301]
[1725804545022,1.5492684,54378.0,54377.0,1e-06]
[1725804545023,1.9270634,54378.0,54377.0,1e-06]
[1725804545713,1.9170634,54378.0,54377.0,1e-06]
[1725804547062,1.88822943,54378.0,54377.0,1e-06]
[1725804548046,1.88822943,54378.0,54377.0,0.080301]
[1725804549272,1.88822943,54378.0,54377.0,0.146301]
[1725804549942,1.91706034,54378.0,54377.0,0.146301]
[1725804550171,1.54926534,54378.0,54377.0,0.146301]
[1725804550824,1.442462,54378.0,54377.0,0.146301]
[1725804553056,0.94831791,54378.0,54377.0,0.146301]
[1725804554131,0.58052291,54378.0,54377.0,0.146301]
[1725804554585,0.68052291,54378.0,54377.0,0.146301]
[1725804554813,0.68133891,54378.0,54377.0,0.146301]
[1725804555039,0.78894928,54378.0,54377.0,0.146301]
[1725804556943,0.76011837,54378.0,54377.0,0.146301]
[1725804557395,0.652508,54378.0,54377.0,0.146301]
[1725804558082,1.020303,54378.0,54377.0,0.146301]
[1725804558559,1.388098,54378.0,54377.0,0.146301]
[1725804560911,1.41692724,54378.0,54377.0,0.146301]
[1725804561364,1.23303024,54378.0,54377.0,0.146301]
[1725804561801,1.41692724,54378.0,54377.0,0.146301]
[1725804561803,1.27194204,54378.0,54377.0,0.146301]
[1725804562281,0.90414704,54378.0,54377.0,0.146301]
[1725804563933,0.63635204,54378.0,54377.0,0.146301]
[1725804564204,0.26855704,54378.0,54377.0,0.146301]
[1725804564447,0.02882924,54378.0,54377.0,0.3448321]
[1725804564695,0.183886,54382.0,54378.0,0.149]
[1725804564917,0.183886,54382.0,54377.0,0.183901]
[1725804565164,0.183886,54382.0,54378.0,0.149]
[1725804565402,0.183888,54381.0,54379.0,0.149]
[1725804565643,0.183888,54381.0,54380.0,0.149]
[1725804565877,0.1,54381.0,54380.0,0.0666]
[1725804566096,0.1,54381.0,54380.0,0.149]
[1725804566568,0.283887,54381.0,54380.0,0.149]
[1725804569478,1.47142424,54381.0,54380.0,0.149]
[1725804569710,1.387212,54381.0,54380.0,0.0824]
[1725804571848,1.4423022,54381.0,54380.0,0.0824]
[1725804572088,1.387212,54381.0,54380.0,0.0824]
[1725804573507,1.287282,54378.0,54377.0,1e-06]
[1725804573709,1.387282,54378.0,54377.0,1e-06]
[1725804574447,1.78913624,54378.0,54377.0,1e-06]
[1725804575175,1.84422644,54378.0,54377.0,1e-06]
[1725804575654,1.89931664,54378.0,54377.0,1e-06]
[1725804576792,1.78913624,54378.0,54377.0,1e-06]
[1725804578176,1.755077,54378.0,54377.0,1e-06]
[1725804578425,1.89289676,54378.0,54377.0,1e-06]
[1725804580912,2.27069176,54378.0,54377.0,1e-06]
[1725804581147,2.226272,54378.0,54377.0,1e-06]
[1725804583257,2.226272,54378.0,54362.0,0.00162]
[1725804583258,0.01,54369.0,54362.0,0.00162]
[1725804583509,1.37039474,54363.0,54362.0,0.00162]
[1725804583724,1.287639,54363.0,54362.0,0.00162]
[1725804583953,1.755536,54363.0,54362.0,0.00162]
[1725804584176,2.10728278,54363.0,54362.0,0.00162]
[1725804585326,1.41647647,54363.0,54362.0,0.00162]
[1725804585560,1.47161818,54363.0,54362.0,0.14452]
[1725804585790,1.44303117,54363.0,54362.0,0.14452]
[1725804586033,1.49817207,54363.0,54362.0,0.14452]
[1725804586240,1.52573948,54363.0,54362.0,0.14452]
[1725804586457,1.67555668,54363.0,54362.0,0.14452]
[1725804586699,1.49816265,54363.0,54362.0,0.14452]
[1725804586915,1.46932518,54363.0,54362.0,0.14452]
[1725804588292,1.4141937,54363.0,54362.0,0.14452]
[1725804588753,1.46932518,54363.0,54362.0,0.14452]
[1725804588979,1.58042442,54363.0,54362.0,0.14452]
[1725804589198,2.03102973,54363.0,54362.0,0.00162]
[1725804590098,1.86479901,54363.0,54362.0,0.00162]
[1725804590331,1.81092907,54363.0,54362.0,0.00162]
[1725804594502,1.89352302,54363.0,54362.0,0.00162]
[1725804595421,1.81092907,54363.0,54362.0,0.00162]
[1725804596574,1.86596781,54363.0,54362.0,0.00162]
[1725804597084,1.99591214,54363.0,54362.0,0.00162]
[1725804597536,1.81092907,54363.0,54362.0,0.14742]
[1725804602260,1.81092907,54363.0,54362.0,0.00162]
[1725804602794,1.89545624,54363.0,54362.0,0.00162]
[1725804603006,1.89345624,54363.0,54362.0,0.00162]
[1725804603221,2.07843931,54363.0,54362.0,0.00162]
[1725804604758,2.07841815,54363.0,54362.0,0.00162]
[1725804604989,2.07841779,54363.0,54362.0,0.00162]
[1725804605434,1.99591214,54363.0,54362.0,0.00162]
[1725804607701,1.99591214,54363.0,54345.0,0.0108156]
[1725804607702,0.01,54360.0,54347.0,0.0641]
[1725804607987,0.01,54360.0,54345.0,0.0108156]
[1725804607988,0.920012,54347.0,54346.0,0.0817]
[1725804608222,1.656022,54347.0,54346.0,0.0817]
[1725804608432,1.756022,54347.0,54346.0,0.0817]
[1725804608657,1.93712283,54347.0,54346.0,0.0817]
[1725804608901,1.656054,54346.0,54345.0,0.0108156]
[1725804609189,1.756054,54346.0,54345.0,0.0108156]
[1725804610094,1.388042,54346.0,54345.0,0.1566156]
[1725804610380,1.02003,54346.0,54345.0,0.1566156]
[1725804610614,0.652018,54346.0,54345.0,0.1566156]
[1725804611309,1.02003,54346.0,54345.0,0.1566156]
[1725804611538,0.652018,54346.0,54345.0,0.1566156]
[1725804612223,0.284006,54346.0,54345.0,0.1566156]
[1725804613168,0.02884417,54351.0,54350.0,0.183992]
[1725804613394,0.183956,54361.0,54358.0,0.0617]
[1725804613620,0.919792,54360.0,54359.0,0.076]
[1725804613826,1.30220381,54360.0,54359.0,0.076]
[1725804615186,1.40220381,54360.0,54359.0,0.076]
[1725804615676,1.387709,54360.0,54359.0,0.076]
[1725804617640,1.46972354,54360.0,54359.0,0.076]
[1725804618130,1.65470661,54360.0,54359.0,0.076]
[1725804618379,0.184002,54347.0,54346.0,0.0617]
[1725804618600,0.920012,54347.0,54346.0,0.0617]
[1725804618823,0.920012,54347.0,54346.0,0.1377]
[1725804619045,1.1120132,54347.0,54346.0,0.1377]
[1725804619264,1.020012,54347.0,54346.0,0.1377]
[1725804619476,1.388017,54347.0,54346.0,0.1377]
[1725804620349,1.41686128,54347.0,54346.0,0.1377]
[1725804620559,1.41686128,54347.0,54346.0,0.076]
[1725804621001,1.44434203,54347.0,54346.0,0.076]
[1725804623298,1.68515496,54347.0,54346.0,0.076]
[1725804624205,0.92003,54346.0,54345.0,0.0124476]
[1725804624431,1.02003,54346.0,54345.0,0.0124476]
[1725804624644,1.388042,54346.0,54345.0,0.0124476]
[1725804625095,1.57302507,54346.0,54345.0,0.0124476]
[1725804625312,1.65573754,54346.0,54345.0,0.0124476]
[1725804625524,1.47075447,54346.0,54345.0,0.0124476]
[1725804626256,1.388042,54346.0,54345.0,0.0124476]
[1725804627389,1.49832529,54346.0,54345.0,0.0124476]
[1725804628335,1.52589611,54346.0,54345.0,0.0124476]
[1725804628554,2.07889118,54346.0,54345.0,0.0124476]
[1725804628785,1.57302507,54346.0,54345.0,0.0124476]
[1725804629044,1.94103707,54346.0,54345.0,0.0124476]
[1725804632034,1.756054,54346.0,54345.0,0.0124476]
[1725804632248,1.756054,54346.0,54345.0,0.1575476]
[1725804632249,1.52614986,54346.0,54345.0,0.1575476]
[1725804632737,1.388042,54346.0,54345.0,0.0124476]
[1725804632986,1.57302507,54346.0,54345.0,0.0124476]
[1725804633203,1.94103707,54346.0,54345.0,0.0124476]
[1725804633415,2.05135255,54346.0,54345.0,0.0124476]
[1725804633658,2.07893142,54346.0,54345.0,0.0124476]
[1725804633875,1.94103707,54346.0,54345.0,0.0124476]
[1725804636389,2.34104907,54346.0,54345.0,6e-07]
[1725804636614,2.34104907,54346.0,54334.0,0.06622]
[1725804636615,0.552129,54335.0,54334.0,0.00162]
[1725804636828,1.288301,54335.0,54334.0,0.00162]
[1725804637075,1.89421531,54335.0,54334.0,0.00162]
[1725804637324,1.756387,54335.0,54334.0,0.00162]
[1725804639415,1.78378529,54335.0,54334.0,0.00162]
[1725804639629,1.96876836,54335.0,54334.0,0.00162]
[1725804640537,1.97076836,54335.0,54334.0,0.00162]
[1725804640754,1.97076836,54335.0,54322.0,0.00164]
[1725804640755,1.666571,54329.0,54322.0,0.00164]
[1725804641239,1.766571,54329.0,54322.0,0.00164]
[1725804641503,1.81524889,54329.0,54322.0,0.00164]
[1725804641743,1.756571,54329.0,54322.0,0.00164]
[1725804641980,1.756571,54329.0,54326.0,0.0805]
[1725804642429,1.766571,54329.0,54322.0,0.14674]
[1725804642655,1.78355919,54329.0,54322.0,0.14674]
[1725804643170,1.85175919,54329.0,54328.0,1e-06]
[1725804643380,0.920572,54314.0,54313.0,0.0805]
[1725804643648,1.75703,54314.0,54313.0,0.0805]
[1725804644076,1.388801,54314.0,54313.0,0.0805]
[1725804644955,1.020572,54314.0,54313.0,0.0805]
[1725804645663,1.020572,54314.0,54313.0,0.1451]
[1725804645899,1.0494322,54314.0,54313.0,0.1451]
[1725804646131,0.6812032,54314.0,54313.0,0.1451]
[1725804646806,1.0494322,54314.0,54313.0,0.1451]
[1725804647028,1.020572,54314.0,54313.0,0.1451]
[1725804647456,1.12539202,54314.0,54313.0,0.1451]
[1725804648084,0.652343,54314.0,54313.0,0.1451]
[1725804648784,0.1,54314.0,54313.0,0.1451]
[1725804649015,0.02886038,54323.0,54318.0,0.1451]
[1725804649250,0.368112,54332.0,54323.0,0.0646]
[1725804649491,0.368112,54332.0,54325.0,0.0646]
[1725804649492,0.184074,54326.0,54325.0,0.0646]
[1725804649676,0.184074,54326.0,54325.0,0.1451]
[1725804650194,0.184067,54328.0,54327.0,0.0646]
[1725804650407,0.368121,54330.0,54327.0,0.0646]
[1725804650633,0.184067,54328.0,54327.0,0.0646]
[1725804651124,0.184067,54328.0,54327.0,0.1451]
[1725804651549,0.284067,54328.0,54327.0,0.1451]
[1725804651770,0.28378865,54328.0,54327.0,0.1451]
[1725804652013,0.1,54328.0,54327.0,0.1451]
[1725804652230,0.38728496,54337.0,54328.0,0.1402]
[1725804652231,0.184053,54332.0,54328.0,0.1402]
[1725804652460,0.184053,54332.0,54330.0,0.0787]
[1725804652958,0.184053,54333.0,54332.0,0.0787]
[1725804653196,0.368054,54340.0,54328.0,0.184065]
[1725804653197,0.368054,54340.0,54334.0,0.1402]
[1725804653406,0.184025,54341.0,54335.0,0.324243]
[1725804653624,0.21289247,54336.0,54335.0,0.1402]
[1725804653863,0.02885247,54336.0,54335.0,0.1402]
[1725804654597,0.02885247,54336.0,54335.0,0.324243]
[1725804654833,0.21289247,54336.0,54335.0,0.1402]
[1725804655080,0.02885247,54336.0,54335.0,0.1402]
[1725804655486,0.31289247,54336.0,54335.0,0.1402]
[1725804655943,0.12885247,54336.0,54335.0,0.1402]
[1725804656197,0.21289247,54336.0,54335.0,0.1402]
[1725804656453,0.21289247,54336.0,54335.0,0.0787]
[1725804656454,1.50362932,54336.0,54335.0,0.0787]
[1725804656693,1.41713247,54336.0,54335.0,0.0787]
[1725804656931,1.38828,54336.0,54335.0,0.0787]
[1725804657151,1.38828,54336.0,54331.0,0.1402]
[1725804657152,1.288374,54332.0,54331.0,0.1402]
[1725804657411,0.552241,54324.0,54323.0,0.0787]
[1725804657654,1.020402,54324.0,54323.0,0.0787]
[1725804660556,0.652241,54324.0,54323.0,0.0787]
[1725804660778,1.020402,54324.0,54323.0,0.0787]
[1725804660996,1.4906032,54324.0,54323.0,0.0787]
[1725804662308,1.51945805,54324.0,54323.0,0.0787]
[1725804662743,1.41741785,54324.0,54323.0,0.0787]
[1725804662953,1.04925685,54324.0,54323.0,0.0787]
[1725804663420,0.68109585,54324.0,54323.0,0.0787]
[1725804664519,0.12885485,54324.0,54323.0,0.262784]
[1725804664762,0.1,54324.0,54323.0,0.692452]
[1725804664965,0.284062,54330.0,54325.0,0.184077]
[1725804665196,0.1,54330.0,54328.0,0.0787]
[1725804665406,0.65218,54330.0,54329.0,0.0615]
[1725804665844,1.0203,54330.0,54329.0,0.0615]
[1725804666568,0.65218,54330.0,54329.0,0.0615]
[1725804666797,1.0203,54330.0,54329.0,0.0615]
[1725804667000,0.28406,54330.0,54329.0,0.0615]
[1725804667252,0.65218,54330.0,54329.0,0.1402]
[1725804667683,0.28406,54330.0,54329.0,0.1402]
[1725804668167,0.65218,54330.0,54329.0,0.1402]
[1725804670147,0.28406,54330.0,54329.0,0.1402]
[1725804670592,0.28406,54330.0,54329.0,0.324263]
[1725804670593,0.1,54330.0,54329.0,0.324263]
[1725804670810,0.368082,54336.0,54331.0,0.0615]
[1725804671042,0.368082,54336.0,54332.0,0.0787]
[1725804671043,0.18405,54333.0,54332.0,0.0787]
[1725804671305,0.28405,54333.0,54332.0,0.0787]
[1725804671766,0.65215,54333.0,54332.0,0.0787]
[1725804671963,0.28405,54333.0,54332.0,0.0787]
[1725804672638,0.1,54333.0,54332.0,0.0787]
[1725804672848,0.1,54334.0,54332.0,0.262752]
[1725804673074,0.552139,54334.0,54333.0,0.0637]
[1725804673291,0.920232,54334.0,54333.0,0.0637]
[1725804673528,1.020232,54334.0,54333.0,0.0637]
[1725804676048,0.652139,54334.0,54333.0,0.1463]
[1725804677386,0.1,54334.0,54333.0,0.1463]
[1725804677602,0.368086,54335.0,54334.0,0.0826]
[1725804677849,1.020215,54335.0,54334.0,0.0826]
[1725804678085,1.1690439,54335.0,54334.0,0.0826]
[1725804678291,1.5371299,54335.0,54334.0,0.0826]
[1725804678933,1.388301,54335.0,54334.0,0.0826]
[1725804681361,1.388301,54335.0,54323.0,0.00163]
[1725804681362,0.1,54335.0,54323.0,0.00163]
[1725804681590,0.18408,54324.0,54323.0,0.00163]
[1725804681817,0.552241,54324.0,54323.0,0.00163]
[1725804682268,0.552241,54324.0,54323.0,0.14793]
[1725804682491,0.18408,54324.0,54323.0,0.14793]
[1725804685791,0.920402,54324.0,54323.0,0.08423]
[1725804686283,1.288563,54324.0,54323.0,0.08423]
[1725804689620,1.288563,54324.0,54323.0,0.00163]
[1725804689948,1.756724,54324.0,54323.0,0.00163]
[1725804690182,1.93798087,54324.0,54323.0,0.00163]
[1725804690606,1.388563,54324.0,54323.0,0.00163]
[1725804692438,1.388563,54324.0,54292.0,0.02730158]
[1725804692439,0.01,54293.0,54292.0,0.02730158]
[1725804692619,0.920613,54312.0,54277.0,0.13249334]
[1725804692620,0.398391,54290.0,54277.0,0.13249334]
[1725804692845,0.572688,54280.0,54277.0,0.0773]
[1725804693086,0.953147,54280.0,54277.0,0.0773]
[1725804693289,1.10809422,54280.0,54277.0,0.0773]
[1725804693527,1.053147,54280.0,54277.0,0.0773]
[1725804693929,0.682688,54280.0,54277.0,0.0773]
[1725804694048,1.051147,54280.0,54277.0,0.0773]
[1725804694247,1.051147,54280.0,54272.0,0.00013]
[1725804695535,1.053147,54280.0,54272.0,0.00013]
[1725804696173,1.051147,54280.0,54272.0,0.00013]
[1725804696391,1.053147,54280.0,54272.0,0.00013]
[1725804698560,1.421606,54280.0,54272.0,0.00013]
[1725804702011,1.45048034,54280.0,54272.0,0.00013]
[1725804702228,1.36084608,54280.0,54272.0,0.00013]
[1725804702439,1.53377419,54280.0,54272.0,0.00013]
[1725804702912,1.36084608,54280.0,54272.0,0.00013]
[1725804703363,0.99238708,54280.0,54272.0,0.00013]
[1725804703807,1.36084608,54280.0,54272.0,0.00013]
[1725804705400,0.99238708,54280.0,54279.0,0.07894]
[1725804706555,0.62192808,54280.0,54279.0,0.14344]
[1725804706763,0.33310334,54280.0,54279.0,0.14344]
[1725804706976,0.304229,54280.0,54279.0,0.14344]
[1725804707432,1.041147,54280.0,54279.0,0.14344]
[1725804707658,1.043147,54280.0,54279.0,0.14344]
[1725804708513,1.043147,54280.0,54279.0,0.14151941]
[1725804709424,1.06451408,54280.0,54279.0,0.07701941]
[1725804710543,1.043147,54280.0,54279.0,0.07701941]
[1725804711642,1.07202553,54280.0,54279.0,0.07701941]
[1725804711854,0.70156653,54280.0,54279.0,0.07701941]
[1725804712539,1.07202553,54280.0,54279.0,0.07701941]
[1725804716030,1.07202553,54280.0,54279.0,0.07864941]
[1725804716211,1.07284053,54280.0,54279.0,0.07864941]
[1725804716449,0.70438153,54280.0,54279.0,0.07864941]
[1725804716670,0.70238153,54280.0,54279.0,0.07864941]
[1725804716876,0.673503,54280.0,54279.0,0.07864941]
[1725804717992,0.305044,54280.0,54279.0,0.07864941]
[1725804718215,0.673503,54280.0,54279.0,0.07864941]
[1725804718484,0.120815,54280.0,54279.0,0.07864941]
[1725804718732,0.000815,54280.0,54279.0,0.99981441]
[1725804718970,0.000815,54280.0,54279.0,0.80909425]
[1725804719181,0.000815,54280.0,54279.0,1.06101441]
[1725804719390,0.000815,54280.0,54279.0,0.69254841]
[1725804720577,0.000815,54280.0,54279.0,1.06101441]
[1725804721951,0.000815,54280.0,54279.0,0.69254841]
[1725804722207,0.000815,54280.0,54279.0,1.06101441]
[1725804722718,0.000815,54280.0,54279.0,0.81521425]
[1725804723161,0.000815,54280.0,54279.0,1.18368025]
[1725804723837,0.000815,54280.0,54279.0,0.81521425]
[1725804724056,0.000815,54280.0,54279.0,0.69254841]
[1725804724548,0.000815,54280.0,54279.0,1.06101441]
[1725804725676,0.000815,54280.0,54279.0,0.69254841]
[1725804728466,0.000815,54280.0,54279.0,0.67254841]
[1725804729338,0.000815,54280.0,54279.0,1.04101441]
[1725804729546,0.000815,54280.0,54279.0,1.16168025]
[1725804729752,0.000815,54280.0,54279.0,0.79321425]
[1725804730703,0.000815,54280.0,54279.0,0.11984941]
[1725804730916,0.000815,54280.0,54279.0,0.67254841]
[1725804732522,0.000815,54280.0,54279.0,0.67258841]
[1725804732966,0.000815,54280.0,54279.0,0.83823244]
[1725804736777,0.000815,54280.0,54279.0,0.11988941]
[1725804738542,0.000815,54280.0,54279.0,0.30412241]
[1725804738543,0.05552674,54280.0,54279.0,0.30412241]
[1725804739256,0.05552674,54280.0,54279.0,0.11988941]
[1725804741039,0.05585446,54280.0,54279.0,0.11988941]
[1725804742114,0.24008498,54280.0,54279.0,0.11988941]
[1725804744788,0.05585598,54280.0,54279.0,0.30412241]
[1725804745013,0.000815,54280.0,54279.0,0.20371425]
[1725804745712,0.000815,54280.0,54279.0,0.11988941]
[1725804746804,0.000815,54280.0,54279.0,0.30412241]
[1725804747006,0.000815,54280.0,54279.0,0.11988941]
[1725804748086,0.000815,54280.0,54279.0,0.30412241]
[1725804748320,0.000815,54280.0,54279.0,0.11988941]